fUST/lending_fUST_20250831
["ID","MTS","AMOUNT","RATE_DAILY","PERIOD"]
[382510750,1756651857231,-480.0,0.00017925,2]
[382510751,1756651857240,-491.68,0.00017925,2]
[382510752,1756651857252,-562.11745179,0.00017925,2]
[382510753,1756651857264,-1362.67,0.00017925,2]
[382510754,1756651857275,-728.12,0.00017925,2]
[382510755,1756651857285,-455.96158309,0.00017925,2]
[382510756,1756651857295,-480.0,0.00017925,2]
[382510757,1756651857305,-492.68,0.00017925,2]
[382510758,1756651857314,-480.0,0.00017925,2]
[382510759,1756651857324,-483.99669531,0.00017925,2]
[382510760,1756651857334,-1688.85,0.00017925,2]
[382510761,1756651857343,-1724.71,0.00017925,2]
[382510762,1756651857353,-480.0,0.00017925,2]
[382510763,1756651857363,-1113.13,0.00017925,2]
[382510764,1756651857373,-480.0,0.00017925,2]
[382510765,1756651857382,-980.22,0.00017925,2]
[382510766,1756651857392,-780.87,0.00017925,2]
[382510767,1756651857401,-480.0,0.00017925,2]
[382510768,1756651857411,-600.4,0.00017925,2]
[382510769,1756651857420,-480.0,0.00017925,2]
[382510770,1756651857429,-480.0,0.00017925,2]
[382510771,1756651857439,-480.0,0.00017925,2]
[382510772,1756651857448,-2079.2,0.00017925,2]
[382510773,1756651857457,-819.39,0.00017925,2]
[382510774,1756651857467,-480.0,0.00017925,2]
[382510775,1756651857477,-618.55,0.00017925,2]
[382510776,1756651857486,-857.74,0.00017925,2]
[382510777,1756651857495,-480.0,0.00017925,2]
[382510778,1756651857506,-1000.0,0.00017925,2]
[382510779,1756651857515,-1043.49,0.00017925,2]
[382510780,1756651857525,-480.0,0.00017925,2]
[382510781,1756651857535,-480.0,0.00017925,2]
[382510782,1756651857545,-520.73,0.00017925,2]
[382510783,1756651857554,-151.0,0.00017926,2]
[382510784,1756651857564,-480.0,0.00017936,2]
[382510785,1756651857574,-380.01389464,0.00017936,2]
[382510786,1756651857583,-638.05,0.00017936,2]
[382510787,1756651857592,-2459.16,0.00017936,2]
[382510788,1756651857601,-1473.87,0.00017936,2]
[382510789,1756651857611,-546.57,0.00017936,2]
[382510790,1756651857620,-823.55,0.00017936,2]
[382510791,1756651857630,-1640.84,0.00017936,2]
[382510792,1756651857639,-937.51,0.00017936,2]
[382510793,1756651857648,-480.0,0.00017936,2]
[382510794,1756651857658,-1598.22,0.00017936,2]
[382510795,1756651857669,-1087.39,0.00017936,2]
[382510796,1756651857679,-1368.75,0.00017936,2]
[382510797,1756651857689,-760.45,0.00017936,2]
[382510798,1756651857699,-782.4,0.00017936,2]
[382510799,1756651857709,-480.0,0.00017936,2]
[382510800,1756651857719,-480.0,0.00017936,2]
[382510801,1756651857729,-480.0,0.00017936,2]
[382510802,1756651857738,-498.92,0.00017936,2]
[382510803,1756651857752,-988.17,0.00017936,2]
[382510804,1756651857762,-480.0,0.00017936,2]
[382510805,1756651857773,-887.17,0.00017936,2]
[382510806,1756651857782,-480.0,0.00017936,2]
[382510807,1756651857791,-480.0,0.00017936,2]
[382510808,1756651857801,-1241.0,0.00017936,2]
[382510809,1756651857812,-480.0,0.00017936,2]
[382510810,1756651857824,-515.15,0.00017936,2]
[382510811,1756651857836,-1166.43,0.00017936,2]
[382510812,1756651857845,-480.0,0.00017936,2]
[382510813,1756651857854,-772.65,0.00017936,2]
[382510814,1756651857864,-480.0,0.00017936,2]
[382510815,1756651857873,-480.0,0.00017936,2]
[382510816,1756651857883,-480.0,0.00017936,2]
[382510817,1756651857892,-1136.59,0.00017936,2]
[382510818,1756651857902,-2003.24,0.00017936,2]
[382510819,1756651857912,-480.0,0.00017936,2]
[382510820,1756651857922,-480.0,0.00017936,2]
[382510821,1756651857932,-547.42,0.00017936,2]
[382510822,1756651857942,-480.0,0.00017936,2]
[382510823,1756651857953,-536.29,0.00017936,2]
[382510824,1756651857963,-917.68,0.00017936,2]
[382510825,1756651857973,-529.93,0.00017936,2]
[382510826,1756651857982,-501.21878673,0.00017973,2]
[382510827,1756651857992,-500.44109157,0.00017973,2]
[382510828,1756651858001,-500.0,0.00017973,2]
[382510829,1756651858011,-500.0,0.00017973,2]
[382510830,1756651858021,-160.41051211,0.00017973,2]
[382510831,1756651858030,-500.0,0.00017973,2]
[382510832,1756651858040,-500.0,0.00017973,2]
[382510833,1756651858049,-200.97791539,0.00017973,2]
[382510834,1756651858059,-500.0,0.00017973,2]
[382510835,1756651858068,-500.0,0.00017973,2]
[382510836,1756651858078,-588.05978159,0.00017973,2]
[382510837,1756651858087,-500.0,0.00017973,2]
[382510838,1756651858098,-500.0,0.00017973,2]
[382510839,1756651858107,-500.0,0.00017973,2]
[382510840,1756651858117,-500.0,0.00017973,2]
[382510841,1756651858127,-500.0,0.00017973,2]
[382510842,1756651858138,-500.0,0.00017973,2]
[382510843,1756651858148,-500.0,0.00017973,2]
[382510844,1756651858157,-500.0,0.00017973,2]
[382510845,1756651858169,-500.0,0.00017973,2]
[382510846,1756651858179,-500.0,0.00017973,2]
[382510847,1756651858188,-500.0,0.00017973,2]
[382510848,1756651858197,-500.0,0.00017973,2]
[382510849,1756651858207,-500.0,0.00017973,2]
[382510850,1756651858216,-500.0,0.00017973,2]
[382510851,1756651858226,-500.13222882,0.00017973,2]
[382510852,1756651858235,-351.80120694,0.00017973,2]
[382510853,1756651858245,-500.0,0.00017973,2]
[382510854,1756651858255,-501.77299188,0.00017973,2]
[382510855,1756651858264,-500.0,0.00017973,2]
[382510856,1756651858274,-500.0,0.00017973,2]
[382510857,1756651858284,-174.19792125,0.00017973,2]
[382510858,1756651858293,-500.0,0.00017973,2]
[382510859,1756651858303,-500.0,0.00017973,2]
[382510860,1756651858312,-500.0,0.00017973,2]
[382510861,1756651858322,-634.81033961,0.00017973,2]
[382510862,1756651858331,-500.0,0.00017973,2]
[382510863,1756651858340,-500.0,0.00017973,2]
[382510864,1756651858349,-166.41033355,0.00017973,2]
[382510865,1756651858359,-505.12053512,0.00017973,2]
[382510866,1756651858368,-500.0,0.00017973,2]
[382510867,1756651858377,-500.0,0.00017973,2]
[382510868,1756651858386,-500.0,0.00017973,2]
[382510869,1756651858396,-500.0,0.00017973,2]
[382510870,1756651858405,-500.0,0.00017973,2]
[382510871,1756651858414,-500.0,0.00017973,2]
[382510872,1756651858423,-642.24989844,0.00017973,2]
[382510873,1756651858433,-500.0,0.00017973,2]
[382510874,1756651858442,-500.0,0.00017973,2]
[382510875,1756651858452,-500.0,0.00017973,2]
[382510876,1756651858462,-500.0,0.00017973,2]
[382510877,1756651858471,-500.0,0.00017973,2]
[382510878,1756651858481,-151.0,0.00017973,2]
[382510879,1756651858490,-478.32430408,0.00017973,2]
[382510880,1756651858500,-14603.14603986,0.00017999,2]
[382510881,1756651858509,-41869.49836729,0.00018,2]
[382510882,1756651858519,-9567.19967618,0.00018,2]
[382510883,1756651858528,-23104.43973852,0.00018,2]
[382510884,1756651858538,-386.89298841,0.00018,14]
[382510885,1756651858547,-2988.10233505,0.00018,2]
[382510886,1756651858556,-168.0,0.00018016,2]
[382510887,1756651858566,-151.0,0.00018021,2]
[382510888,1756651858575,-152.0,0.00018021,2]
[382510889,1756651858585,-480.0,0.00018033,2]
[382510890,1756651858594,-480.0,0.00018035,2]
[382510891,1756651858604,-480.0,0.00018035,2]
[382510892,1756651858613,-480.0,0.00018035,2]
[382510893,1756651858623,-480.0,0.00018035,2]
[382510894,1756651858632,-525.75,0.00018035,2]
[382510895,1756651858642,-573.89,0.00018035,2]
[382510896,1756651858651,-480.0,0.00018035,2]
[382510897,1756651858660,-480.0,0.00018035,2]
[382510898,1756651858670,-356.36837268,0.00018035,2]
[382510899,1756651858680,-480.0,0.00018035,2]
[382510900,1756651858690,-1349.62,0.00018035,2]
[382510901,1756651858699,-672.35,0.00018035,2]
[382510902,1756651858710,-604.81,0.00018035,2]
[382510903,1756651858719,-672.18,0.00018035,2]
[382510904,1756651858730,-480.0,0.00018035,2]
[382510905,1756651858739,-480.0,0.00018035,2]
[382510906,1756651858748,-1372.41,0.00018035,2]
[382510907,1756651858757,-480.0,0.00018035,2]
[382510908,1756651858766,-480.0,0.00018035,2]
[382510909,1756651858775,-480.0,0.00018035,2]
[382510910,1756651858783,-480.0,0.00018035,2]
[382510911,1756651858793,-711.19,0.00018035,2]
[382510912,1756651858802,-480.0,0.00018035,2]
[382510913,1756651858811,-480.0,0.00018035,2]
[382510914,1756651858820,-480.0,0.00018035,2]
[382510915,1756651858830,-381.87211716,0.00018035,2]
[382510916,1756651858839,-556.63,0.00018035,2]
[382510917,1756651858848,-480.0,0.00018035,2]
[382510918,1756651858858,-480.0,0.00018035,2]
[382510919,1756651858867,-480.0,0.00018035,2]
[382510920,1756651858876,-480.0,0.00018035,2]
[382510921,1756651858885,-527.57,0.00018035,2]
[382510922,1756651858895,-480.0,0.00018035,2]
[382510923,1756651858904,-480.0,0.00018035,2]
[382510924,1756651858913,-528.02,0.00018035,2]
[382510925,1756651858922,-480.0,0.00018035,2]
[382510926,1756651858931,-812.64,0.00018035,2]
[382510927,1756651858940,-527.3,0.00018035,2]
[382510928,1756651858949,-480.0,0.00018035,2]
[382510929,1756651858958,-536.23,0.00018035,2]
[382510930,1756651858967,-480.0,0.00018035,2]
[382510931,1756651858976,-285.26,0.00018035,2]
[382510932,1756651858986,-480.0,0.00018035,2]
[382510933,1756651858996,-480.0,0.00018035,2]
[382510934,1756651859005,-480.0,0.00018035,2]
[382510935,1756651859014,-480.0,0.00018035,2]
[382510936,1756651859023,-480.0,0.00018035,2]
[382510937,1756651859033,-480.0,0.00018035,2]
[382510938,1756651859043,-480.0,0.00018035,2]
[382510939,1756651859052,-480.0,0.00018035,2]
[382510940,1756651859062,-265.5352574,0.00018035,2]
[382510941,1756651859071,-480.0,0.00018035,2]
[382510942,1756651859080,-599.75,0.00018035,2]
[382510943,1756651859089,-480.0,0.00018035,2]
[382510944,1756651859099,-480.0,0.00018035,2]
[382510945,1756651859108,-480.0,0.00018035,2]
[382510946,1756651859118,-480.0,0.00018035,2]
[382510947,1756651859127,-627.93,0.00018035,2]
[382510948,1756651859139,-480.0,0.00018035,2]
[382510949,1756651859149,-480.0,0.00018035,2]
[382510950,1756651859280,-927.7,0.00018035,2]
[382510951,1756651859291,-480.0,0.00018035,2]
[382510952,1756651859300,-480.0,0.00018035,2]
[382510953,1756651859310,-480.0,0.00018035,2]
[382510954,1756651859319,-480.0,0.00018035,2]
[382510955,1756651859329,-500.0,0.00018035,2]
[382510956,1756651859339,-1036.3,0.00018035,2]
[382510957,1756651859348,-480.0,0.00018035,2]
[382510958,1756651859357,-480.0,0.00018035,2]
[382510959,1756651859367,-480.0,0.00018035,2]
[382510960,1756651859376,-480.0,0.00018035,2]
[382510961,1756651859385,-480.0,0.00018035,2]
[382510962,1756651859395,-555.89,0.00018035,2]
[382510963,1756651859404,-480.0,0.00018035,2]
[382510964,1756651859413,-480.0,0.00018035,2]
[382510965,1756651859423,-694.21,0.00018035,2]
[382510966,1756651859433,-480.0,0.00018035,2]
[382510967,1756651859443,-480.0,0.00018035,2]
[382510968,1756651859452,-480.0,0.00018035,2]
[382510969,1756651859462,-480.0,0.00018035,2]
[382510970,1756651859472,-585.72,0.00018035,2]
[382510971,1756651859482,-543.00059376,0.00018035,2]
[382510972,1756651859492,-1121.22,0.00018035,2]
[382510973,1756651859501,-558.04,0.00018035,2]
[382510974,1756651859511,-480.0,0.00018035,2]
[382510975,1756651859520,-480.0,0.00018035,2]
[382510976,1756651859530,-480.0,0.00018035,2]
[382510977,1756651859540,-596.72,0.00018035,2]
[382510978,1756651859554,-480.0,0.00018035,2]
[382510979,1756651859565,-480.0,0.00018035,2]
[382510980,1756651859575,-480.0,0.00018035,2]
[382510981,1756651859585,-703.8,0.00018035,2]
[382510982,1756651859595,-1631.16,0.00018035,2]
[382510983,1756651859606,-480.0,0.00018035,2]
[382510984,1756651859616,-600.81,0.00018035,2]
[382510985,1756651859626,-876.15,0.00018035,2]
[382510986,1756651859635,-480.0,0.00018035,2]
[382510987,1756651859645,-568.98,0.00018035,2]
[382510988,1756651859654,-480.0,0.00018035,2]
[382510989,1756651859664,-480.0,0.00018035,2]
[382510990,1756651859674,-480.0,0.00018035,2]
[382510991,1756651859683,-523.9,0.00018036,2]
[382510992,1756651859693,-480.0,0.00018036,2]
[382510993,1756651859704,-872.97,0.00018036,2]
[382510994,1756651859714,-480.0,0.00018036,2]
[382510995,1756651859724,-1309.14,0.00018036,2]
[382510996,1756651859734,-480.0,0.00018036,2]
[382510997,1756651859744,-1309.99,0.00018036,2]
[382510998,1756651859753,-632.21,0.00018036,2]
[382510999,1756651859763,-480.0,0.00018036,2]
[382511000,1756651859774,-480.0,0.00018036,2]
[382511001,1756651859784,-481.15,0.00018036,2]
[382511002,1756651859794,-480.0,0.00018036,2]
[382511003,1756651859803,-689.78,0.00018036,2]
[382511004,1756651859813,-4000.0,0.00018044,2]
[382511005,1756651859822,-480.0,0.00018044,2]
[382511006,1756651859832,-623.37,0.00018044,2]
[382511007,1756651859842,-302.59980593,0.00018044,2]
[382511008,1756651859851,-480.0,0.00018044,2]
[382511009,1756651859860,-500.0,0.00018073,2]
[382511010,1756651859870,-500.0,0.00018073,2]
[382511011,1756651859880,-500.0,0.00018073,2]
[382511012,1756651859891,-500.0,0.00018073,2]
[382511013,1756651859900,-153.658742,0.00018082,10]
[382511014,1756651859910,-341.9881509,0.00018082,2]
[382511015,1756651859920,-160.0,0.00018084,2]
[382511016,1756651859929,-975.0,0.00018095,2]
[382511017,1756651859939,-632.0,0.00018095,2]
[382511018,1756651859951,-2152.0,0.00018095,2]
[382511019,1756651859961,-480.0,0.00018098,2]
[382511020,1756651859970,-1479.54,0.00018098,2]
[382511021,1756651859979,-480.0,0.00018098,2]
[382511022,1756651859989,-480.0,0.00018098,2]
[382511023,1756651859998,-590.38,0.00018098,2]
[382511024,1756651860007,-480.0,0.00018098,2]
[382511025,1756651860017,-480.0,0.00018098,2]
[382511026,1756651860026,-480.0,0.00018098,2]
[382511027,1756651860036,-480.0,0.00018098,2]
[382511028,1756651860046,-480.0,0.00018098,2]
[382511029,1756651860056,-540.69,0.00018098,2]
[382511030,1756651860066,-480.0,0.00018098,2]
[382511031,1756651860077,-979.56,0.00018098,2]
[382511032,1756651860088,-480.0,0.00018098,2]
[382511033,1756651860098,-729.52,0.00018098,2]
[382511034,1756651860108,-480.0,0.00018098,2]
[382511035,1756651860118,-480.0,0.00018098,2]
[382511036,1756651860127,-480.0,0.00018098,2]
[382511037,1756651860137,-480.0,0.00018098,2]
[382511038,1756651860148,-480.0,0.00018098,2]
[382511039,1756651860158,-814.99,0.00018098,2]
[382511040,1756651860169,-480.0,0.00018098,2]
[382511041,1756651860180,-778.43,0.00018098,2]
[382511042,1756651860190,-920.06,0.00018098,2]
[382511043,1756651860199,-1088.59,0.00018098,2]
[382511044,1756651860210,-923.47,0.00018098,2]
[382511045,1756651860219,-684.85,0.00018098,2]
[382511046,1756651860229,-2101.39,0.00018098,2]
[382511047,1756651860239,-1064.97,0.00018098,2]
[382511048,1756651860249,-988.1,0.00018098,2]
[382511049,1756651860259,-480.0,0.00018098,2]
[382511050,1756651860269,-2390.46,0.00018098,2]
[382511051,1756651860279,-9068.57623777,0.00018099,2]
[382511052,1756651860289,-500.0,0.00018099,2]
[382511053,1756651860299,-500.0,0.00018099,2]
[382511054,1756651860308,-500.0,0.00018099,2]
[382511055,1756651860319,-1665.0,0.00018099,2]
[382511056,1756651860328,-480.0,0.00018099,2]
[382511057,1756651860338,-482.97,0.00018099,2]
[382511058,1756651860348,-480.0,0.00018099,2]
[382511059,1756651860358,-586.63,0.00018099,2]
[382511060,1756651860367,-848.34,0.00018099,2]
[382511061,1756651860377,-2401.87,0.00018099,2]
[382511062,1756651860387,-480.0,0.00018099,2]
[382511063,1756651860397,-224.34141797,0.00018099,2]
[382511064,1756651860407,-1216.22,0.00018099,2]
[382511065,1756651860417,-1431.15,0.00018099,2]
[382511066,1756651860428,-1606.52,0.00018099,2]
[382511067,1756651860438,-1264.16,0.00018099,2]
[382511068,1756651860447,-763.49,0.00018099,2]
[382511069,1756651860458,-480.0,0.00018099,2]
[382511070,1756651860468,-753.39,0.00018099,2]
[382511071,1756651860478,-637.66,0.00018099,2]
[382511072,1756651860487,-720.66,0.00018099,2]
[382511073,1756651860497,-778.4,0.00018099,2]
[382511074,1756651860507,-1137.5,0.00018099,2]
[382511075,1756651860516,-1212.06,0.00018099,2]
[382511076,1756651860526,-975.04,0.00018099,2]
[382511077,1756651860535,-480.0,0.00018099,2]
[382511078,1756651860545,-750.42,0.00018099,2]
[382511079,1756651860555,-480.0,0.00018099,2]
[382511080,1756651860564,-480.0,0.00018099,2]
[382511081,1756651860575,-656.77,0.00018099,2]
[382511082,1756651860584,-805.08,0.00018099,2]
[382511083,1756651860593,-1160.11,0.00018099,2]
[382511084,1756651860603,-480.0,0.00018099,2]
[382511085,1756651860612,-480.0,0.00018099,2]
[382511086,1756651860622,-3227.32,0.00018099,2]
[382511087,1756651860631,-1593.45,0.00018099,2]
[382511088,1756651860640,-1058.01,0.00018099,2]
[382511089,1756651860650,-484.48,0.00018099,2]
[382511090,1756651860659,-833.46,0.00018099,2]
[382511091,1756651860669,-480.0,0.00018099,2]
[382511092,1756651860678,-1398.71,0.00018099,2]
[382511093,1756651860688,-480.0,0.00018099,2]
[382511094,1756651860699,-1579.51,0.00018099,2]
[382511095,1756651860708,-1529.1,0.00018099,2]
[382511096,1756651860719,-1544.43,0.00018099,2]
[382511097,1756651860728,-1792.94,0.00018099,2]
[382511098,1756651860738,-1125.15,0.00018099,2]
[382511099,1756651860748,-757.48,0.00018099,2]
[382511100,1756651860759,-622.4,0.00018099,2]
[382511101,1756651860769,-774.17,0.00018099,2]
[382511102,1756651860779,-353.68286026,0.00018099,2]
[382511103,1756651860788,-1095.63,0.00018099,2]
[382511104,1756651860798,-494.03,0.00018099,2]
[382511105,1756651860809,-520.93,0.00018099,2]
[382511106,1756651860819,-1110.44,0.00018099,2]
[382511107,1756651860828,-1455.49,0.00018099,2]
[382511108,1756651860838,-480.0,0.00018099,2]
[382511109,1756651860847,-1043.61,0.00018099,2]
[382511110,1756651860856,-1925.66,0.00018099,2]
[382511111,1756651860865,-1812.62,0.00018099,2]
[382511112,1756651860875,-480.0,0.00018099,2]
[382511113,1756651860884,-1516.89,0.00018099,2]
[382511114,1756651860893,-4235.44,0.00018099,2]
[382511115,1756651860903,-678.71,0.00018099,2]
[382511116,1756651860912,-480.0,0.00018099,2]
[382511117,1756651860922,-628.22,0.00018099,2]
[382511118,1756651860932,-480.0,0.00018099,2]
[382511119,1756651860945,-1089.38,0.00018099,2]
[382511120,1756651860956,-480.0,0.00018099,2]
[382511121,1756651860966,-480.0,0.00018099,2]
[382511122,1756651860976,-506.14,0.00018099,2]
[382511123,1756651860986,-888.31,0.00018099,2]
[382511124,1756651860996,-490.41,0.00018099,2]
[382511125,1756651861007,-916.14,0.00018099,2]
[382511126,1756651861017,-3571.61,0.00018099,2]
[382511127,1756651861027,-480.0,0.00018099,2]
[382511128,1756651861037,-893.19,0.00018099,2]
[382511129,1756651861047,-621.08,0.00018099,2]
[382511130,1756651861056,-2265.9,0.00018099,2]
[382511131,1756651861065,-1581.36,0.00018099,2]
[382511132,1756651861075,-748.79,0.00018099,2]
[382511133,1756651861084,-1395.75,0.00018099,2]
[382511134,1756651861093,-480.0,0.00018099,2]
[382511135,1756651861103,-480.0,0.00018099,2]
[382511136,1756651861112,-596.22,0.00018099,2]
[382511137,1756651861122,-954.63,0.00018099,2]
[382511138,1756651861133,-1459.9,0.00018099,2]
[382511139,1756651861142,-480.0,0.00018099,2]
[382511140,1756651861152,-1079.88,0.00018099,2]
[382511141,1756651861161,-480.0,0.00018099,2]
[382511142,1756651861174,-480.0,0.00018099,2]
[382511143,1756651861184,-290.70175368,0.00018119,2]
[382511144,1756651861193,-151.7874975,0.00018141,2]
[382511145,1756651861202,-356.14737043,0.00018195,2]
[382511146,1756651861211,-500.0,0.00018195,2]
[382511147,1756651861222,-500.0,0.00018195,2]
[382511148,1756651861231,-245.0,0.00018195,2]
[382511149,1756651861241,-182.531,0.00018198,2]
[382511150,1756651861251,-207.93,0.00018198,2]
[382511151,1756651861262,-150.134,0.00018198,2]
[382511152,1756651861271,-150.0,0.00018198,2]
[382511153,1756651861403,-255.159,0.00018198,2]
[382511154,1756651861413,-150.0,0.00018198,2]
[382511155,1756651861422,-520.00015841,0.00018198,2]
[382511156,1756651861431,-731.05,0.00018198,2]
[382511157,1756651861441,-642.22,0.00018198,2]
[382511158,1756651861451,-480.0,0.00018198,2]
[382511159,1756651861460,-1375.66,0.00018198,2]
[382511160,1756651861470,-480.0,0.00018198,2]
[382511161,1756651861480,-1149.18,0.00018198,2]
[382511162,1756651861490,-480.0,0.00018198,2]
[382511163,1756651861499,-1548.48,0.00018198,2]
[382511164,1756651861508,-709.67,0.00018198,2]
[382511165,1756651861518,-287.38560881,0.00018198,2]
[382511166,1756651861528,-1424.59,0.00018198,2]
[382511167,1756651861538,-480.0,0.00018198,2]
[382511168,1756651861548,-1662.37,0.00018198,2]
[382511169,1756651861558,-1250.16,0.00018198,2]
[382511170,1756651861567,-5699.48,0.00018198,2]
[382511171,1756651861576,-9152.64,0.00018198,2]
[382511172,1756651861586,-2714.39,0.00018198,2]
[382511173,1756651861595,-515.23,0.00018198,2]
[382511174,1756651861604,-1933.6,0.00018198,2]
[382511175,1756651861614,-1477.79,0.00018198,2]
[382511176,1756651861623,-485.08,0.00018199,2]
[382511177,1756651861633,-480.0,0.00018199,2]
[382511178,1756651861642,-480.0,0.00018199,2]
[382511179,1756651861651,-480.0,0.00018199,2]
[382511180,1756651861661,-487.36,0.00018199,2]
[382511181,1756651861671,-480.0,0.00018199,2]
[382511182,1756651861680,-480.0,0.00018199,2]
[382511183,1756651861690,-480.0,0.00018199,2]
[382511184,1756651861700,-480.0,0.00018199,2]
[382511185,1756651861709,-1164.96,0.00018199,2]
[382511186,1756651861720,-480.0,0.00018199,2]
[382511187,1756651861729,-480.0,0.00018199,2]
[382511188,1756651861739,-480.0,0.00018199,2]
[382511189,1756651861748,-302.5322839,0.00018199,2]
[382511190,1756651861758,-480.0,0.00018199,2]
[382511191,1756651861767,-480.0,0.00018199,2]
[382511192,1756651861776,-480.0,0.00018199,2]
[382511193,1756651861786,-480.0,0.00018199,2]
[382511194,1756651861795,-480.0,0.00018199,2]
[382511195,1756651861805,-480.0,0.00018199,2]
[382511196,1756651861815,-480.0,0.00018199,2]
[382511197,1756651861824,-480.0,0.00018199,2]
[382511198,1756651861834,-480.0,0.00018199,2]
[382511199,1756651861843,-480.0,0.00018199,2]
[382511200,1756651861853,-532.5,0.00018199,2]
[382511201,1756651861862,-389.61774307,0.00018199,2]
[382511202,1756651861872,-642.46,0.00018199,2]
[382511203,1756651861882,-769.63,0.00018199,2]
[382511204,1756651861891,-480.0,0.00018199,2]
[382511205,1756651861901,-480.0,0.00018199,2]
[382511206,1756651861910,-480.0,0.00018199,2]
[382511207,1756651861920,-513.17890549,0.00018199,2]
[382511208,1756651861930,-522.76,0.00018199,2]
[382511209,1756651861940,-480.0,0.00018199,2]
[382511210,1756651861949,-647.92,0.00018199,2]
[382511211,1756651861959,-514.77,0.00018199,2]
[382511212,1756651861969,-1409.85,0.00018199,2]
[382511213,1756651861987,-480.0,0.00018199,2]
[382511214,1756651861999,-296.00705477,0.00018199,2]
[382511215,1756651862009,-889.9,0.00018199,2]
[382511216,1756651862019,-480.0,0.00018199,2]
[382511217,1756651862030,-480.0,0.00018199,2]
[382511218,1756651862040,-480.0,0.00018199,2]
[382511219,1756651862050,-1038.27,0.00018199,2]
[382511220,1756651862060,-1174.22,0.00018199,2]
[382511221,1756651862069,-480.0,0.00018199,2]
[382511222,1756651862079,-941.21,0.00018199,2]
[382511223,1756651862089,-480.0,0.00018199,2]
[382511224,1756651862099,-698.05,0.00018199,2]
[382511225,1756651862110,-480.0,0.00018199,2]
[382511226,1756651862119,-1890.83,0.00018199,2]
[382511227,1756651862128,-579.34,0.00018199,2]
[382511228,1756651862138,-480.0,0.00018199,2]
[382511229,1756651862147,-480.0,0.00018199,2]
[382511230,1756651862157,-480.0,0.00018199,2]
[382511231,1756651862168,-480.0,0.00018199,2]
[382511232,1756651862179,-480.0,0.00018199,2]
[382511233,1756651862189,-530.72,0.00018199,2]
[382511234,1756651862198,-642.64,0.00018199,2]
[382511235,1756651862207,-654.68,0.00018199,2]
[382511236,1756651862217,-480.0,0.00018199,2]
[382511237,1756651862226,-480.0,0.00018199,2]
[382511238,1756651862235,-1317.18,0.00018199,2]
[382511239,1756651862245,-507.49,0.00018199,2]
[382511240,1756651862254,-939.65,0.00018199,2]
[382511241,1756651862264,-1732.11,0.00018199,2]
[382511242,1756651862274,-480.0,0.00018199,2]
[382511243,1756651862285,-480.0,0.00018199,2]
[382511244,1756651862294,-480.0,0.00018199,2]
[382511245,1756651862304,-480.0,0.00018199,2]
[382511246,1756651862313,-1492.6,0.00018199,2]
[382511247,1756651862323,-1086.21,0.00018199,2]
[382511248,1756651862333,-480.0,0.00018199,2]
[382511249,1756651862343,-480.0,0.00018199,2]